[Event "Live Chess"]
[Site "Chess.com"]
[Date "2023.05.21"]
[Round "-"]
[White "SavagePawn7"]
[Black "HonestJoe1"]
[Result "0-1"]
[WhiteElo "775"]
[BlackElo "2091"]
[TimeControl "300"]
[EndTime "8:36:55 PDT"]
[Termination "HonestJoe1 won by checkmate"]

1. e4 {[%clk 0:04:54.1]} 1... c5 {[%clk 0:04:59.1]} 2. d4 {[%clk 0:04:52.4]}
2... cxd4 {[%clk 0:04:58]} 3. c3 {[%clk 0:04:51.2]} 3... Nf6 {[%clk 0:04:53.1]}
4. Nd2 {[%clk 0:04:42.6]} 4... dxc3 {[%clk 0:04:51]} 5. bxc3 {[%clk 0:04:37.3]}
5... Qa5 {[%clk 0:04:41.7]} 6. Nc4 {[%clk 0:04:30.5]} 6... Qxc3+ {[%clk
0:04:35.5]} 7. Bd2 {[%clk 0:04:17.1]} 7... Qd4 {[%clk 0:04:32.7]} 8. f3 {[%clk
0:04:01.1]} 8... d5 {[%clk 0:03:46.2]} 9. Ne2 {[%clk 0:03:53.3]} 9... Qc5 {[%clk
0:03:41.5]} 10. Ne3 {[%clk 0:03:34.4]} 10... d4 {[%clk 0:03:30.3]} 11. Rc1
{[%clk 0:03:32.5]} 11... Qd6 {[%clk 0:03:27.6]} 12. Nf5 {[%clk 0:03:29.2]} 12...
Qd8 {[%clk 0:03:21]} 13. Bb4 {[%clk 0:03:15.9]} 13... e5 {[%clk 0:03:18.9]} 14.
Bxf8 {[%clk 0:02:56.1]} 14... Kxf8 {[%clk 0:03:17.4]} 15. Qa4 {[%clk 0:02:25.8]}
15... Nc6 {[%clk 0:03:09.9]} 16. Rxc6 {[%clk 0:02:12.2]} 16... bxc6 {[%clk
0:03:06.3]} 17. Qxc6 {[%clk 0:02:10.8]} 17... Bxf5 {[%clk 0:03:01.5]} 18. exf5
{[%clk 0:01:59.4]} 18... Rc8 {[%clk 0:02:58.1]} 19. Qa4 {[%clk 0:01:39]} 19...
d3 {[%clk 0:02:56.5]} 20. Ng3 {[%clk 0:01:25.3]} 20... d2+ {[%clk 0:02:55.1]}
21. Kd1 {[%clk 0:01:24.1]} 21... Rc1+ {[%clk 0:02:53.2]} 22. Ke2 {[%clk
0:01:14.4]} 22... d1=Q+ {[%clk 0:02:51.4]} 23. Qxd1 {[%clk 0:01:03.2]} 23...
Qxd1+ {[%clk 0:02:49.5]} 24. Kf2 {[%clk 0:01:01]} 24... Qd2+ {[%clk 0:02:29.5]}
25. Kg1 {[%clk 0:00:43.5]} 25... Qe3# {[%clk 0:02:27.7]} 0-1

[Event "Live Chess"]
[Site "Chess.com"]
[Date "2023.05.21"]
[Round "-"]
[White "TheSmoulderingMaster"]
[Black "WelshTiger"]
[Result "0-1"]
[WhiteElo "1659"]
[BlackElo "2321"]
[TimeControl "300"]
[EndTime "8:36:56 PDT"]
[Termination "WelshTiger won by resignation"]

1. e4 {[%clk 0:04:58.4]} 1... c5 {[%clk 0:04:58]} 2. Nf3 {[%clk 0:04:57.2]} 2...
d6 {[%clk 0:04:57.9]} 3. d4 {[%clk 0:04:55.8]} 3... cxd4 {[%clk 0:04:57.8]} 4.
Nxd4 {[%clk 0:04:55.2]} 4... Nf6 {[%clk 0:04:57.4]} 5. Nc3 {[%clk 0:04:54.5]}
5... Nc6 {[%clk 0:04:57.3]} 6. Be3 {[%clk 0:04:53.2]} 6... Ng4 {[%clk
0:04:55.6]} 7. Bg5 {[%clk 0:04:50.3]} 7... Qb6 {[%clk 0:04:54.8]} 8. Ncb5 {[%clk
0:04:44.2]} 8... a6 {[%clk 0:04:48.4]} 9. Be2 {[%clk 0:04:29.4]} 9... axb5
{[%clk 0:04:34.8]} 10. Bxg4 {[%clk 0:04:18]} 10... Qxd4 {[%clk 0:04:27.6]} 11.
Bxc8 {[%clk 0:04:12.9]} 11... Qxd1+ {[%clk 0:04:22.5]} 12. Rxd1 {[%clk
0:04:11.4]} 12... Rxc8 {[%clk 0:04:22.4]} 0-1

[Event "Live Chess"]
[Site "Chess.com"]
[Date "2023.05.21"]
[Round "-"]
[White "TheAuditer"]
[Black "bedsdrout"]
[Result "0-1"]
[WhiteElo "1369"]
[BlackElo "1879"]
[TimeControl "300"]
[EndTime "8:37:17 PDT"]
[Termination "bedsdrout won by resignation"]

1. d4 {[%clk 0:04:56.8]} 1... d5 {[%clk 0:04:58.5]} 2. Nf3 {[%clk 0:04:56]} 2...
Nc6 {[%clk 0:04:56.2]} 3. Bf4 {[%clk 0:04:51.3]} 3... Bf5 {[%clk 0:04:53.1]} 4.
e3 {[%clk 0:04:49.7]} 4... e6 {[%clk 0:04:51]} 5. c4 {[%clk 0:04:44.5]} 5... Nf6
{[%clk 0:04:48.5]} 6. Nc3 {[%clk 0:04:41.6]} 6... Bb4 {[%clk 0:04:46.1]} 7. a3
{[%clk 0:04:37.7]} 7... Bxc3+ {[%clk 0:04:39.5]} 8. bxc3 {[%clk 0:04:36.4]} 8...
O-O {[%clk 0:04:37.2]} 9. cxd5 {[%clk 0:04:29.1]} 9... Nxd5 {[%clk 0:04:34.3]}
10. Qc1 {[%clk 0:04:08.4]} 10... Nxf4 {[%clk 0:04:32.1]} 11. exf4 {[%clk
0:04:06.9]} 11... Na5 {[%clk 0:04:29.9]} 12. Be2 {[%clk 0:03:59.4]} 12... Nb3
{[%clk 0:04:27.5]} 0-1

[Event "Live Chess"]
[Site "Chess.com"]
[Date "2023.05.21"]
[Round "-"]
[White "JanMur7"]
[Black "McSlash1"]
[Result "0-1"]
[WhiteElo "1951"]
[BlackElo "1972"]
[TimeControl "300"]
[EndTime "8:37:21 PDT"]
[Termination "McSlash1 won by resignation"]

1. e4 {[%clk 0:04:59.2]} 1... c5 {[%clk 0:04:59.5]} 2. Nf3 {[%clk 0:04:58.3]}
2... d6 {[%clk 0:04:59.1]} 3. c3 {[%clk 0:04:57.5]} 3... Nf6 {[%clk 0:04:58.5]}
4. Be2 {[%clk 0:04:54.8]} 4... g6 {[%clk 0:04:57.1]} 5. O-O {[%clk 0:04:52.7]}
5... Bg7 {[%clk 0:04:56.5]} 6. Re1 {[%clk 0:04:49.2]} 6... O-O {[%clk 0:04:56]}
7. e5 {[%clk 0:04:46.2]} 7... dxe5 {[%clk 0:04:55.2]} 8. Nxe5 {[%clk 0:04:46.1]}
8... Nbd7 {[%clk 0:04:54.6]} 9. Nxd7 {[%clk 0:04:44.6]} 9... Bxd7 {[%clk
0:04:54.5]} 10. d4 {[%clk 0:04:43.8]} 10... cxd4 {[%clk 0:04:53.6]} 11. cxd4
{[%clk 0:04:43.7]} 11... Bc6 {[%clk 0:04:53.1]} 12. Bf3 {[%clk 0:04:43]} 12...
Nd5 {[%clk 0:04:49.9]} 13. Nc3 {[%clk 0:04:41.8]} 13... e6 {[%clk 0:04:48.5]}
14. Nxd5 {[%clk 0:04:40.6]} 14... Bxd5 {[%clk 0:04:48.4]} 15. Bxd5 {[%clk
0:04:39.7]} 15... Qxd5 {[%clk 0:04:48.3]} 16. Be3 {[%clk 0:04:39.1]} 16... Rfd8
{[%clk 0:04:46.4]} 17. Qb3 {[%clk 0:04:29.6]} 17... Qxb3 {[%clk 0:04:41.6]} 18.
axb3 {[%clk 0:04:29.5]} 18... a6 {[%clk 0:04:40.8]} 19. Red1 {[%clk 0:04:26.4]}
19... e5 {[%clk 0:04:39.2]} 20. dxe5 {[%clk 0:04:23.1]} 20... Bxe5 {[%clk
0:04:39.1]} 21. Rab1 {[%clk 0:04:19.8]} 21... Bxb2 {[%clk 0:04:34.2]} 22. g3
{[%clk 0:04:10.9]} 22... Rxd1+ {[%clk 0:04:30.3]} 23. Rxd1 {[%clk 0:04:08.8]}
23... b5 {[%clk 0:04:29.7]} 24. Bd4 {[%clk 0:04:00.5]} 24... Rd8 {[%clk
0:04:27.4]} 0-1

[Event "Live Chess"]
[Site "Chess.com"]
[Date "2023.05.21"]
[Round "-"]
[White "gmnorfolk"]
[Black "lHolyDiverl"]
[Result "1-0"]
[WhiteElo "2116"]
[BlackElo "555"]
[TimeControl "300"]
[EndTime "8:37:23 PDT"]
[Termination "gmnorfolk won by checkmate"]

1. d4 {[%clk 0:04:58.6]} 1... d5 {[%clk 0:04:54.2]} 2. c4 {[%clk 0:04:56.6]}
2... Nf6 {[%clk 0:04:53.3]} 3. cxd5 {[%clk 0:04:55]} 3... Nxd5 {[%clk
0:04:48.1]} 4. Nf3 {[%clk 0:04:54.9]} 4... Bf5 {[%clk 0:04:38.9]} 5. Ng1 {[%clk
0:04:54.8]} 5... Nb4 {[%clk 0:04:36.3]} 6. Nf3 {[%clk 0:04:54.7]} 6... Nc2+
{[%clk 0:04:33.5]} 7. Kd2 {[%clk 0:04:49.7]} 7... Nxa1 {[%clk 0:04:32.2]} 8. Nc3
{[%clk 0:04:44.3]} 8... Nc2 {[%clk 0:04:25]} 9. e4 {[%clk 0:04:41.4]} 9... Nxd4
{[%clk 0:04:14.5]} 10. Ke3 {[%clk 0:04:40.1]} 10... Nbc6 {[%clk 0:03:55.1]} 11.
Nxd4 {[%clk 0:04:35.5]} 11... Bg6 {[%clk 0:03:37.4]} 12. Bb5 {[%clk 0:04:33]}
12... e6 {[%clk 0:03:05.2]} 13. Nxc6 {[%clk 0:04:30.5]} 13... bxc6 {[%clk
0:03:03.3]} 14. Bxc6+ {[%clk 0:04:27.9]} 14... Ke7 {[%clk 0:03:00.8]} 15. Bxa8
{[%clk 0:04:06.9]} 15... Qxa8 {[%clk 0:02:59.2]} 16. Qd4 {[%clk 0:03:58.5]}
16... f5 {[%clk 0:02:37.4]} 17. Rd1 {[%clk 0:03:45.7]} 17... Kf7 {[%clk
0:01:48.6]} 18. Qd7+ {[%clk 0:03:10.8]} 18... Kf6 {[%clk 0:01:29.1]} 19. e5+
{[%clk 0:03:08.6]} 19... Kxe5 {[%clk 0:01:17.4]} 20. Qd4# {[%clk 0:03:05.1]} 1-0

[Event "Live Chess"]
[Site "Chess.com"]
[Date "2023.05.21"]
[Round "-"]
[White "Man-Del-Brot"]
[Black "Conradical12"]
[Result "0-1"]
[WhiteElo "1076"]
[BlackElo "1515"]
[TimeControl "300"]
[EndTime "8:37:24 PDT"]
[Termination "Conradical12 won by resignation"]

1. c4 {[%clk 0:04:55.6]} 1... e5 {[%clk 0:04:59.2]} 2. Nc3 {[%clk 0:04:54.6]}
2... Nc6 {[%clk 0:04:58.7]} 3. e3 {[%clk 0:04:53.8]} 3... f5 {[%clk 0:04:57.1]}
4. d4 {[%clk 0:04:50.5]} 4... exd4 {[%clk 0:04:55.2]} 5. exd4 {[%clk 0:04:49.5]}
5... d5 {[%clk 0:04:52.9]} 6. c5 {[%clk 0:04:47.8]} 6... Nf6 {[%clk 0:04:49.3]}
7. Bg5 {[%clk 0:04:42.8]} 7... Be7 {[%clk 0:04:48.6]} 8. Bd3 {[%clk 0:04:39.2]}
8... O-O {[%clk 0:04:47.9]} 9. Nf3 {[%clk 0:04:37.5]} 9... Re8 {[%clk
0:04:47.4]} 10. O-O {[%clk 0:04:35.5]} 10... Be6 {[%clk 0:04:44.8]} 11. Re1
{[%clk 0:04:24.9]} 11... Qd7 {[%clk 0:04:43.1]} 12. Ne5 {[%clk 0:04:17.2]} 12...
Nxe5 {[%clk 0:04:41.1]} 13. dxe5 {[%clk 0:04:15.6]} 13... Ne4 {[%clk 0:04:39.4]}
14. Bxe7 {[%clk 0:04:12.7]} 14... Nxc3 {[%clk 0:04:37.3]} 15. bxc3 {[%clk
0:04:09.2]} 15... Qxe7 {[%clk 0:04:36.5]} 16. f4 {[%clk 0:04:04.5]} 16... Qxc5+
{[%clk 0:04:33.6]} 17. Kh1 {[%clk 0:04:01.8]} 17... Qxc3 {[%clk 0:04:33]} 18.
Bc2 {[%clk 0:03:53.6]} 18... d4 {[%clk 0:04:30.1]} 19. Qd3 {[%clk 0:03:27.6]}
19... Rad8 {[%clk 0:04:24.9]} 20. Qxc3 {[%clk 0:02:33.5]} 20... dxc3 {[%clk
0:04:21.6]} 21. Red1 {[%clk 0:02:31.9]} 21... Rd2 {[%clk 0:04:20.7]} 22. Bb3
{[%clk 0:02:25.1]} 22... Bxb3 {[%clk 0:04:15]} 23. axb3 {[%clk 0:02:23.9]} 23...
Red8 {[%clk 0:04:14.5]} 24. Rxd2 {[%clk 0:02:06]} 24... Rxd2 {[%clk 0:04:14.4]}
25. h4 {[%clk 0:02:00.1]} 25... c2 {[%clk 0:04:12.4]} 26. Rxa7 {[%clk
0:01:58.3]} 26... c1=Q+ {[%clk 0:04:10.9]} 27. Kh2 {[%clk 0:01:55.8]} 27... Qe1
{[%clk 0:03:59.6]} 0-1

[Event "Live Chess"]
[Site "Chess.com"]
[Date "2023.05.21"]
[Round "-"]
[White "Crowded_House"]
[Black "stevochess11"]
[Result "0-1"]
[WhiteElo "1609"]
[BlackElo "1670"]
[TimeControl "300"]
[EndTime "8:37:28 PDT"]
[Termination "stevochess11 won by checkmate"]

1. d4 {[%clk 0:04:58.8]} 1... Nf6 {[%clk 0:04:56.3]} 2. Bg5 {[%clk 0:04:58.1]}
2... Ne4 {[%clk 0:04:54.9]} 3. Bh4 {[%clk 0:04:56.6]} 3... g5 {[%clk 0:04:53]}
4. Bg3 {[%clk 0:04:54.6]} 4... h5 {[%clk 0:04:51.4]} 5. Nd2 {[%clk 0:04:39.5]}
5... d5 {[%clk 0:04:43.2]} 6. Nxe4 {[%clk 0:04:32.5]} 6... dxe4 {[%clk
0:04:40.4]} 7. h3 {[%clk 0:04:29.2]} 7... Bg7 {[%clk 0:04:22.3]} 8. c3 {[%clk
0:04:26.9]} 8... Nc6 {[%clk 0:04:16.9]} 9. e3 {[%clk 0:04:24.6]} 9... Be6 {[%clk
0:03:45.9]} 10. Bb5 {[%clk 0:04:13.3]} 10... Bd7 {[%clk 0:03:36.5]} 11. Qa4
{[%clk 0:04:06.1]} 11... O-O {[%clk 0:03:28.9]} 12. Ne2 {[%clk 0:04:01.1]} 12...
a6 {[%clk 0:03:22.4]} 13. Bxc6 {[%clk 0:03:57.6]} 13... Bxc6 {[%clk 0:03:22]}
14. Qc2 {[%clk 0:03:49.7]} 14... f5 {[%clk 0:03:02.5]} 15. O-O-O {[%clk
0:03:46]} 15... b5 {[%clk 0:02:53.4]} 16. Be5 {[%clk 0:03:28.8]} 16... Qd5
{[%clk 0:02:47.2]} 17. Bxg7 {[%clk 0:03:18.7]} 17... Kxg7 {[%clk 0:02:44.8]} 18.
Qb3 {[%clk 0:03:11.2]} 18... a5 {[%clk 0:02:36.1]} 19. Qxd5 {[%clk 0:03:08.8]}
19... Bxd5 {[%clk 0:02:36]} 20. a3 {[%clk 0:03:06.9]} 20... Rfb8 {[%clk
0:02:26.9]} 21. Ng3 {[%clk 0:02:59.2]} 21... Kg6 {[%clk 0:02:21.4]} 22. Rhf1
{[%clk 0:02:56.1]} 22... b4 {[%clk 0:02:18.8]} 23. axb4 {[%clk 0:02:42.2]} 23...
axb4 {[%clk 0:02:16.1]} 24. Rd2 {[%clk 0:02:29.5]} 24... Ra1+ {[%clk 0:02:05.5]}
25. Kc2 {[%clk 0:02:24.4]} 25... b3# {[%clk 0:02:05.2]} 0-1

[Event "Live Chess"]
[Site "Chess.com"]
[Date "2023.05.21"]
[Round "-"]
[White "DoYouLikeCurry"]
[Black "Olisingapore"]
[Result "0-1"]
[WhiteElo "1448"]
[BlackElo "1821"]
[TimeControl "300"]
[EndTime "8:37:29 PDT"]
[Termination "Olisingapore won by resignation"]

1. e4 {[%clk 0:04:57.2]} 1... c5 {[%clk 0:04:59.2]} 2. Nc3 {[%clk 0:04:55.7]}
2... d6 {[%clk 0:04:58.8]} 3. f4 {[%clk 0:04:53.9]} 3... g6 {[%clk 0:04:57.2]}
4. Nf3 {[%clk 0:04:52]} 4... Bg7 {[%clk 0:04:56.8]} 5. Bb5+ {[%clk 0:04:42.5]}
5... Bd7 {[%clk 0:04:55.3]} 6. Bxd7+ {[%clk 0:04:41.4]} 6... Qxd7 {[%clk
0:04:53.7]} 7. d3 {[%clk 0:04:41]} 7... Nc6 {[%clk 0:04:53.1]} 8. O-O {[%clk
0:04:39.9]} 8... e6 {[%clk 0:04:52.7]} 9. Qe1 {[%clk 0:04:38.1]} 9... Nge7
{[%clk 0:04:52.6]} 10. Qh4 {[%clk 0:04:34.6]} 10... h6 {[%clk 0:04:46.5]} 11. f5
{[%clk 0:04:32.3]} 11... exf5 {[%clk 0:04:44.7]} 12. exf5 {[%clk 0:04:28]} 12...
Nxf5 {[%clk 0:04:31.2]} 13. Qe4+ {[%clk 0:04:21.1]} 13... Nfe7 {[%clk
0:04:26.2]} 14. Nd5 {[%clk 0:04:15]} 14... O-O {[%clk 0:04:22.4]} 15. Nxe7+
{[%clk 0:04:04.4]} 15... Nxe7 {[%clk 0:04:16.4]} 16. Qh4 {[%clk 0:04:02.9]}
16... Nf5 {[%clk 0:04:13.2]} 17. Qf4 {[%clk 0:03:49.8]} 17... Rfe8 {[%clk
0:04:05.8]} 18. c3 {[%clk 0:03:22.9]} 18... b5 {[%clk 0:03:52.5]} 19. Nh4 {[%clk
0:03:19.4]} 19... b4 {[%clk 0:03:45.4]} 20. Nxf5 {[%clk 0:03:14.4]} 20... Qxf5
{[%clk 0:03:34.9]} 21. Qxd6 {[%clk 0:03:01.4]} 21... Qh5 {[%clk 0:02:47.4]} 22.
Qf4 {[%clk 0:02:50.2]} 22... bxc3 {[%clk 0:02:42.1]} 23. Qxf7+ {[%clk
0:02:45.4]} 23... Kh7 {[%clk 0:02:41.6]} 24. b3 {[%clk 0:02:27.9]} 24... Rf8
{[%clk 0:02:33.1]} 25. Qe7 {[%clk 0:02:08.9]} 25... Rxf1+ {[%clk 0:02:27]} 26.
Kxf1 {[%clk 0:02:08.1]} 26... Rf8+ {[%clk 0:02:23.1]} 27. Ke1 {[%clk 0:01:57]}
27... Qxh2 {[%clk 0:02:12.2]} 28. Ba3 {[%clk 0:01:49.6]} 28... Qg1+ {[%clk
0:02:09.7]} 0-1

[Event "Live Chess"]
[Site "Chess.com"]
[Date "2023.05.21"]
[Round "-"]
[White "Pablo_dmp"]
[Black "OleksiyJr1"]
[Result "0-1"]
[WhiteElo "1837"]
[BlackElo "1048"]
[TimeControl "300"]
[EndTime "8:37:31 PDT"]
[Termination "OleksiyJr1 won by checkmate"]

1. e4 {[%clk 0:04:58.5]} 1... c6 {[%clk 0:04:59.3]} 2. d4 {[%clk 0:04:57.1]}
2... d5 {[%clk 0:04:58.5]} 3. e5 {[%clk 0:04:56.7]} 3... e6 {[%clk 0:04:57.3]}
4. c4 {[%clk 0:04:53.2]} 4... Nd7 {[%clk 0:04:53.6]} 5. Nc3 {[%clk 0:04:51.8]}
5... Nb6 {[%clk 0:04:52.6]} 6. b3 {[%clk 0:04:49.9]} 6... f6 {[%clk 0:04:49.1]}
7. Nf3 {[%clk 0:04:45.9]} 7... Bb4 {[%clk 0:04:45.3]} 8. Bd2 {[%clk 0:04:43.7]}
8... Ne7 {[%clk 0:04:42.4]} 9. Bd3 {[%clk 0:04:41.7]} 9... O-O {[%clk
0:04:36.4]} 10. h4 {[%clk 0:04:37.8]} 10... f5 {[%clk 0:04:34.1]} 11. Ng5 {[%clk
0:04:34.6]} 11... h6 {[%clk 0:04:31.9]} 12. Qh5 {[%clk 0:04:20.8]} 12... dxc4
{[%clk 0:04:25.4]} 13. bxc4 {[%clk 0:04:04.4]} 13... Qxd4 {[%clk 0:04:13.6]} 14.
Ne2 {[%clk 0:03:38.2]} 14... Qxa1+ {[%clk 0:04:08.4]} 15. Nc1 {[%clk 0:03:31.9]}
15... Qxc1+ {[%clk 0:04:06.4]} 16. Ke2 {[%clk 0:03:31]} 16... Qxd2+ {[%clk
0:04:00.3]} 17. Kf3 {[%clk 0:03:30.9]} 17... Qxd3+ {[%clk 0:03:56]} 18. Kf4
{[%clk 0:03:29.7]} 18... Bd2# {[%clk 0:03:52]} 0-1

[Event "Live Chess"]
[Site "Chess.com"]
[Date "2023.05.21"]
[Round "-"]
[White "MarkLim1"]
[Black "PiotrD11"]
[Result "1-0"]
[WhiteElo "1711"]
[BlackElo "1373"]
[TimeControl "300"]
[EndTime "8:37:33 PDT"]
[Termination "MarkLim1 won by resignation"]

1. e4 {[%clk 0:04:59]} 1... e5 {[%clk 0:04:57.4]} 2. Bc4 {[%clk 0:04:57.7]} 2...
Nf6 {[%clk 0:04:56.1]} 3. d3 {[%clk 0:04:57]} 3... d6 {[%clk 0:04:53.3]} 4. Nf3
{[%clk 0:04:55.9]} 4... Be7 {[%clk 0:04:48.9]} 5. O-O {[%clk 0:04:55]} 5... O-O
{[%clk 0:04:48.5]} 6. c3 {[%clk 0:04:54.3]} 6... a6 {[%clk 0:04:47.6]} 7. Bb3
{[%clk 0:04:52.6]} 7... Nbd7 {[%clk 0:04:43]} 8. Re1 {[%clk 0:04:51.9]} 8... Nc5
{[%clk 0:04:42.1]} 9. Bc2 {[%clk 0:04:50.6]} 9... b5 {[%clk 0:04:40.8]} 10. Nbd2
{[%clk 0:04:49.7]} 10... Bb7 {[%clk 0:04:40.2]} 11. Nf1 {[%clk 0:04:48.8]} 11...
Qd7 {[%clk 0:04:34.7]} 12. Ng3 {[%clk 0:04:48.3]} 12... Ne6 {[%clk 0:04:33.3]}
13. d4 {[%clk 0:04:45.1]} 13... c6 {[%clk 0:04:19.9]} 14. dxe5 {[%clk
0:04:41.1]} 14... dxe5 {[%clk 0:04:15.6]} 15. Nxe5 {[%clk 0:04:40.1]} 15... Qxd1
{[%clk 0:04:12.2]} 16. Rxd1 {[%clk 0:04:39.1]} 16... Bc5 {[%clk 0:04:02.6]} 17.
Nd7 {[%clk 0:04:17.7]} 17... Rfd8 {[%clk 0:03:55.8]} 18. Nxf6+ {[%clk 0:04:16]}
18... gxf6 {[%clk 0:03:53]} 19. Bh6 {[%clk 0:04:00.2]} 19... Bb6 {[%clk
0:03:41.9]} 20. Nf5 {[%clk 0:03:52.5]} 20... Rxd1+ {[%clk 0:03:32.7]} 21. Rxd1
{[%clk 0:03:50.5]} 21... Bc5 {[%clk 0:03:23.1]} 22. Kf1 {[%clk 0:03:36.1]} 22...
Bf8 {[%clk 0:03:15.5]} 23. Bxf8 {[%clk 0:03:34.3]} 23... Nxf8 {[%clk 0:03:14.6]}
24. Bb3 {[%clk 0:03:26.4]} 24... Ng6 {[%clk 0:03:09]} 25. Nh6+ {[%clk
0:03:24.5]} 25... Kg7 {[%clk 0:03:07.2]} 26. Nxf7 {[%clk 0:03:21]} 26... c5
{[%clk 0:03:06.9]} 27. Nd6 {[%clk 0:03:16.9]} 27... Bc6 {[%clk 0:02:57]} 28. f3
{[%clk 0:03:10]} 28... c4 {[%clk 0:02:50.3]} 29. Bc2 {[%clk 0:03:07.4]} 29...
Nf4 {[%clk 0:02:49]} 30. Nf5+ {[%clk 0:03:05.1]} 30... Kh8 {[%clk 0:02:43.9]}
31. Rd6 {[%clk 0:03:01.2]} 31... Bb7 {[%clk 0:02:33.2]} 32. Rxf6 {[%clk
0:02:58]} 32... Rd8 {[%clk 0:02:29.8]} 33. Ke1 {[%clk 0:02:55.7]} 33... Nxg2+
{[%clk 0:02:28]} 34. Ke2 {[%clk 0:02:53.1]} 34... Nf4+ {[%clk 0:02:26]} 35. Ke3
{[%clk 0:02:46.1]} 35... Nh5 {[%clk 0:02:17.8]} 36. Rd6 {[%clk 0:02:43.7]} 36...
Re8 {[%clk 0:02:13.6]} 37. Rd7 {[%clk 0:02:35.2]} 37... Nf6 {[%clk 0:02:08.2]}
38. Rxb7 {[%clk 0:02:33.3]} 38... Nd5+ {[%clk 0:01:58.3]} 39. Kf2 {[%clk
0:02:28.5]} 39... Nf4 {[%clk 0:01:53.4]} 40. Ne3 {[%clk 0:02:10.2]} 40... Rd8
{[%clk 0:01:51.3]} 41. Kg3 {[%clk 0:02:08]} 41... Ne2+ {[%clk 0:01:46.4]} 42.
Kg4 {[%clk 0:02:05.6]} 42... Rg8+ {[%clk 0:01:44.5]} 43. Kf5 {[%clk 0:02:04.5]}
43... Rf8+ {[%clk 0:01:43.3]} 44. Ke6 {[%clk 0:02:00.3]} 44... Nf4+ {[%clk
0:01:40.9]} 45. Ke7 {[%clk 0:01:59.3]} 45... Rg8 {[%clk 0:01:37.3]} 46. Nf5
{[%clk 0:01:53]} 46... Ng6+ {[%clk 0:01:34.8]} 47. Kd6 {[%clk 0:01:47]} 47...
Rd8+ {[%clk 0:01:31.5]} 48. Rd7 {[%clk 0:01:45.4]} 48... Rb8 {[%clk 0:01:25.4]}
49. e5 {[%clk 0:01:34.9]} 49... Rb6+ {[%clk 0:01:23.4]} 50. Kc7 {[%clk
0:01:32.7]} 50... Rc6+ {[%clk 0:01:15.6]} 51. Kxc6 {[%clk 0:01:31.2]} 51...
Nxe5+ {[%clk 0:01:15.5]} 52. Kd6 {[%clk 0:01:29.4]} 52... Nxd7 {[%clk
0:01:15.4]} 53. Kxd7 {[%clk 0:01:28.6]} 53... h5 {[%clk 0:01:14.4]} 54. Kc6
{[%clk 0:01:23]} 54... Kg8 {[%clk 0:01:13]} 55. Kb6 {[%clk 0:01:22]} 55... Kf7
{[%clk 0:01:12.5]} 56. Kxa6 {[%clk 0:01:21]} 56... Kf6 {[%clk 0:01:12.2]} 57.
Kxb5 {[%clk 0:01:19.7]} 57... Ke5 {[%clk 0:01:12.1]} 58. Kxc4 {[%clk 0:01:18.7]}
1-0

[Event "Live Chess"]
[Site "Chess.com"]
[Date "2023.05.21"]
[Round "-"]
[White "slava_ukr"]
[Black "HoarseyHorsey"]
[Result "1-0"]
[WhiteElo "2347"]
[BlackElo "1465"]
[TimeControl "300"]
[EndTime "8:37:38 PDT"]
[Termination "slava_ukr won by resignation"]

1. e4 {[%clk 0:04:58.5]} 1... c5 {[%clk 0:04:58.6]} 2. Nc3 {[%clk 0:04:57.4]}
2... e6 {[%clk 0:04:58.1]} 3. f4 {[%clk 0:04:56.8]} 3... Nc6 {[%clk 0:04:57.7]}
4. Nf3 {[%clk 0:04:55.9]} 4... g6 {[%clk 0:04:57.3]} 5. Bc4 {[%clk 0:04:51.9]}
5... Bg7 {[%clk 0:04:55.3]} 6. f5 {[%clk 0:04:51.1]} 6... exf5 {[%clk
0:04:52.7]} 7. d3 {[%clk 0:04:50.1]} 7... a6 {[%clk 0:04:48.7]} 8. a4 {[%clk
0:04:48.2]} 8... Nge7 {[%clk 0:04:44.1]} 9. O-O {[%clk 0:04:47]} 9... O-O {[%clk
0:04:43.1]} 10. Qe1 {[%clk 0:04:46]} 10... d6 {[%clk 0:04:36.1]} 11. Qh4 {[%clk
0:04:44.4]} 11... Nd4 {[%clk 0:04:23.8]} 12. Bg5 {[%clk 0:04:40.7]} 12... Re8
{[%clk 0:04:08.3]} 13. Nd5 {[%clk 0:04:39.3]} 13... Ne6 {[%clk 0:04:03.8]} 14.
Nxe7+ {[%clk 0:04:30.7]} 14... Rxe7 {[%clk 0:04:02.4]} 15. Bxe7 {[%clk
0:04:29.5]} 15... Qe8 {[%clk 0:03:58.9]} 16. Bf6 {[%clk 0:04:25]} 16... fxe4
{[%clk 0:03:51.4]} 17. dxe4 {[%clk 0:04:19.3]} 17... Bxf6 {[%clk 0:03:44.6]} 18.
Qxf6 {[%clk 0:04:17.7]} 18... Qf8 {[%clk 0:03:43.5]} 19. Ng5 {[%clk 0:04:12]}
19... Qg7 {[%clk 0:03:42.5]} 20. Qxg7+ {[%clk 0:04:01.7]} 20... Kxg7 {[%clk
0:03:39.4]} 21. Rxf7+ {[%clk 0:03:59.3]} 1-0